lending/lending_fUSD_20260328
["ID","MTS","AMOUNT","RATE_DAILY","PERIOD"]
[419006896,1774741844475,-1000.0,0.00028767,5]
[419006897,1774741844485,-154.1,0.00028786,2]
[419006898,1774741844494,-178.47,0.00028981,2]
[419006899,1774741844503,-1588.30498183,0.00028991,2]
[419006900,1774741844513,-1250.0,0.00029017,2]
[419006901,1774741844523,-1250.0,0.00029017,2]
[419006902,1774741844533,-1250.0,0.00029017,2]
[419006903,1774741844543,-1250.0,0.00029017,2]
[419006904,1774741844554,-1250.0,0.00029017,2]
[419006905,1774741844564,-1250.0,0.00029017,2]
[419006906,1774741844576,-1250.0,0.00029017,2]
[419006907,1774741844587,-1250.0,0.00029017,2]
[419006908,1774741844596,-1250.0,0.00029017,2]
[419006909,1774741844607,-972.0,0.00029017,2]
[419006910,1774741844617,-250.0,0.00029141,2]
[419006911,1774741844626,-250.0,0.00029141,2]
[419006912,1774741844637,-250.0,0.00029141,2]
[419006913,1774741844647,-250.0,0.00029141,2]
[419006914,1774741844656,-250.0,0.00029141,2]
[419006915,1774741844666,-250.0,0.00029141,2]
[419006916,1774741844676,-250.0,0.00029141,2]
[419006917,1774741844686,-250.0,0.00029141,2]
[419006918,1774741844695,-376.0,0.00029141,2]
[419006919,1774741844705,-775.4,0.000293,7]
[419006920,1774741844715,-471.73879827,0.00029452,2]
[419006921,1774741844725,-1045.0,0.00029459,2]
[419006922,1774741844735,-621.0,0.00029459,2]
[419006923,1774741844745,-1262.0,0.00029459,2]
[419006924,1774741844755,-323.315,0.00029459,2]
[419006925,1774741844765,-178.46,0.00029585,2]
[419006926,1774741844775,-150.0,0.00029736,2]
[419006927,1774741844785,-150.0,0.00029736,2]
[419006928,1774741844795,-150.0,0.00029736,2]
[419006929,1774741844804,-150.0,0.00029736,2]
[419006930,1774741844814,-200.0,0.00029736,2]
[419006931,1774741844825,-425.89,0.000299,7]
[419006932,1774741844835,-150.0,0.00029971,2]
[419006933,1774741844844,-2807.0,0.0002998,3]
[419006934,1774741844854,-815.05,0.00029993,2]
[419006935,1774741844863,-150.0,0.0003,2]
[419006936,1774741844875,-150.0,0.0003,2]
[419006937,1774741844886,-150.0,0.00030136,20]
[419006938,1774741844897,-1500.0,0.00030137,5]
[419006939,1774741844908,-240.0,0.00030137,40]
[419006940,1774741844919,-500.0,0.00030166,2]
[419006941,1774741844929,-500.0,0.00030181,2]
[419006942,1774741844939,-2000.0,0.000303,2]
[419006943,1774741844949,-1570.0,0.00030415,3]
[419006944,1774741844959,-513.0,0.000305,16]
[419006945,1774741844969,-158.6714,0.000306,2]
[419006946,1774741844979,-278.62,0.00030865,2]
[419006947,1774741844989,-214.1,0.00031,4]
[419006948,1774741844998,-2000.0,0.00031,2]
[419006949,1774741845008,-150.0,0.0003147,2]
[419006950,1774741845018,-1109.08387476,0.00031507,5]
[419006951,1774741845027,-500.0,0.00031608,2]
[419006952,1774741845036,-815.05,0.00032156,2]
[419006953,1774741845046,-500.0,0.00032208,120]
[419006954,1774741845056,-1588.30498183,0.00032372,2]
[419006955,1774741845066,-1045.0,0.00032459,2]
[419006956,1774741845076,-227.633,0.00032459,2]
[419006957,1774741845086,-1262.0,0.00032459,2]
[419006958,1774741845096,-166.6,0.000325,30]
[419006959,1774741845106,-533.99546316,0.0003255,6]
[419006960,1774741845115,-775.4,0.000327,7]
[419006961,1774741845124,-240.0,0.00032877,50]
[419006962,1774741845134,-1062.42,0.000329,30]
[419006963,1774741845144,-159.79,0.000329,2]
[419006964,1774741845153,-500.0,0.00032965,2]
[419006965,1774741845162,-150.0,0.00033043,2]
[419006966,1774741845172,-500.0,0.0003305,2]
[419006967,1774741845182,-513.0,0.0003325,18]
[419006968,1774741845192,-1096.22229725,0.00033258,4]
[419006969,1774741845202,-425.89,0.000339,30]
[419006970,1774741845212,-166.6,0.000339,30]
[419006971,1774741845222,-2000.0,0.00034,2]
[419006972,1774741845232,-2000.0,0.000343,7]
[419006973,1774741845241,-775.4,0.000343,30]
[419006974,1774741845251,-815.05,0.00034319,2]
[419006975,1774741845261,-153.0,0.00034441,30]
[419006976,1774741845271,-177.0,0.00034441,30]
[419006977,1774741845281,-157.0,0.00034471,30]
[419006978,1774741845291,-196.0,0.00034471,30]
[419006979,1774741845301,-4226.0,0.00034471,30]
[419006980,1774741845312,-876.0,0.00034471,30]
[419006981,1774741845322,-500.0,0.00034492,2]
[419006982,1774741845332,-150.0,0.00034696,2]
[419006983,1774741845342,-1500.0,0.00034795,2]
[419006984,1774741845352,-287.50881182,0.00034834,2]
[419006985,1774741845363,-1783.04,0.00034855,2]
[419006986,1774741845374,-89499.46,0.000349,7]
[419006987,1774741845385,-1062.42,0.000349,30]
[419006988,1774741845396,-166.6,0.00035,30]
[419006989,1774741845406,-17620.96347223,0.00035,8]
[419006990,1774741845417,-471.73879827,0.00035095,2]
[419006991,1774741845427,-160.9165,0.000352,2]
[419006992,1774741845436,-775.4,0.000352,30]
[419006993,1774741845446,-2807.0,0.00035265,11]
[419006994,1774741845455,-153.0,0.00035441,30]
[419006995,1774741845465,-177.0,0.00035441,30]
[419006996,1774741845474,-1045.0,0.00035459,2]
[419006997,1774741845483,-1262.0,0.00035459,2]
[419006998,1774741845493,-157.0,0.00035471,30]
[419006999,1774741845502,-196.0,0.00035471,30]
[419007000,1774741845511,-4226.0,0.00035471,30]
[419007001,1774741845520,-876.0,0.00035471,30]
[419007002,1774741845530,-1062.42,0.000355,30]
[419007003,1774741845539,-240.0,0.00035616,60]
[419007004,1774741845549,-500.0,0.00035748,2]
[419007005,1774741845558,-1588.30498183,0.00035754,2]
[419007006,1774741845567,-1062.42,0.000358,30]
[419007007,1774741845576,-2000.0,0.000359,7]
[419007008,1774741845586,-500.0,0.00035934,2]
[419007009,1774741845596,-513.0,0.00036,21]
[419007010,1774741845606,-500.0,0.00036147,120]
[419007011,1774741845616,-1101.0,0.00036192,120]
[419007012,1774741845625,-1712.80326983,0.00036192,120]
[419007013,1774741845635,-479.0,0.00036192,120]
[419007014,1774741845645,-582.37,0.000362,7]
[419007015,1774741845655,-150.0,0.0003643,2]
[419007016,1774741845665,-153.0,0.00036441,30]
[419007017,1774741845675,-177.0,0.00036441,30]
[419007018,1774741845685,-157.0,0.00036471,30]
[419007019,1774741845695,-196.0,0.00036471,30]
[419007020,1774741845705,-4226.0,0.00036471,30]
[419007021,1774741845715,-876.0,0.00036471,30]
[419007022,1774741845725,-815.05,0.00036482,2]
[419007023,1774741845735,-425.89,0.000365,30]
[419007024,1774741845744,-775.4,0.000365,30]
[419007025,1774741845756,-152.0,0.00036762,3]
[419007026,1774741845766,-161.0,0.00036832,11]
[419007027,1774741845776,-169.0,0.000369,120]
[419007028,1774741845788,-170.0,0.000369,120]
[419007029,1774741845798,-175.0,0.000369,120]
[419007030,1774741845807,-1905.451,0.00036938,46]
[419007031,1774741845816,-1062.42,0.00037,30]
[419007033,1774741845825,-500.0,0.00037376,2]
[419007034,1774741845835,-582.37,0.000374,7]
[419007035,1774741845844,-6617.54,0.000374,2]
[419007036,1774741845853,-153.0,0.00037441,30]
[419007037,1774741845862,-177.0,0.00037441,30]
[419007038,1774741845872,-157.0,0.00037471,30]
[419007039,1774741845883,-196.0,0.00037471,30]
[419007040,1774741845892,-4226.0,0.00037471,30]
[419007041,1774741845902,-876.0,0.00037471,30]
[419007042,1774741845911,-162.0509,0.000375,2]
[419007043,1774741845922,-2016.0,0.000375,7]
[419007044,1774741845931,-2000.0,0.000377,2]
[419007045,1774741845941,-71926.40647443,0.000381,33]
[419007046,1774741845952,-278.62,0.00038268,2]
[419007047,1774741845963,-297.0184146,0.00038346,2]
[419007048,1774741845973,-300.0,0.00038356,120]
[419007049,1774741845982,-200.0,0.00038356,2]
[419007050,1774741845992,-200.0,0.00038356,2]
[419007051,1774741846002,-177.0,0.00038356,2]
[419007052,1774741846012,-200.0,0.00038356,2]
[419007053,1774741846022,-252.0,0.00038356,2]
[419007054,1774741846032,-240.0,0.00038356,70]
[419007055,1774741846041,-6617.54,0.000384,30]
[419007056,1774741846051,-153.0,0.00038441,30]
[419007057,1774741846061,-177.0,0.00038441,30]
[419007058,1774741846070,-1045.0,0.00038459,2]
[419007059,1774741846080,-1262.0,0.00038459,2]
[419007060,1774741846089,-157.0,0.00038471,30]
[419007061,1774741846099,-196.0,0.00038471,30]
[419007062,1774741846110,-4226.0,0.00038471,30]
[419007063,1774741846119,-876.0,0.00038471,30]
[419007064,1774741846224,-1062.42,0.000385,30]
[419007065,1774741846234,-500.0,0.00038532,2]
[419007066,1774741846244,-815.05,0.00038644,2]
[419007067,1774741846254,-161.0,0.00038692,11]
[419007068,1774741846264,-169.0,0.00038745,120]
[419007069,1774741846274,-170.0,0.00038745,120]
[419007070,1774741846284,-513.0,0.0003875,23]
[419007071,1774741846293,-500.0,0.00038818,2]
[419007072,1774741846303,-1588.30498183,0.00039136,2]
[419007073,1774741846313,-237.0000001,0.00039426,10]
[419007074,1774741846323,-153.0,0.00039441,30]
[419007075,1774741846333,-177.0,0.00039441,30]
[419007076,1774741846343,-157.0,0.00039471,30]
[419007077,1774741846353,-196.0,0.00039471,30]
[419007078,1774741846363,-4226.0,0.00039471,30]
[419007079,1774741846372,-876.0,0.00039471,30]
[419007080,1774741846381,-1570.0,0.00039652,11]
[419007081,1774741846390,-163.1934,0.000397,2]
[419007082,1774741846401,-2000.0,0.00039834,2]
[419007083,1774741846411,-700.0,0.0003997,2]
[419007084,1774741846423,-755.10640697,0.0004,2]
[419007085,1774741846434,-3000.0,0.0004,10]
[419007086,1774741846444,-500.0,0.00040085,120]
[419007087,1774741846454,-425.89,0.000401,30]
[419007088,1774741846463,-500.0,0.0004026,2]
[419007089,1774741846472,-161.0,0.00040294,11]
[419007090,1774741846482,-153.0,0.00040441,30]
[419007091,1774741846491,-177.0,0.00040441,30]
[419007092,1774741846502,-157.0,0.00040471,30]
[419007093,1774741846512,-196.0,0.00040471,30]
[419007094,1774741846521,-4226.0,0.00040471,30]
[419007095,1774741846531,-876.0,0.00040471,30]
[419007096,1774741846540,-1990.0,0.00040547,120]
[419007097,1774741846550,-169.0,0.00040682,120]
[419007098,1774741846559,-775.4,0.000407,30]
[419007100,1774741846569,-471.73879827,0.00040737,2]
[419007102,1774741846578,-1062.42,0.000408,30]
[419007104,1774741846587,-815.05,0.00040807,2]
[419007106,1774741846597,-1990.0,0.00040821,120]
[419007108,1774741846608,-2000.0,0.00040834,2]
[419007110,1774741846617,-1570.0,0.00040934,11]
[419007112,1774741846627,-129985.0,0.0004095,60]
[419007114,1774741846636,-191.22,0.00041,120]
[419007116,1774741846645,-1697.58372,0.00041,15]
[419007118,1774741846655,-1990.0,0.00041095,120]
[419007120,1774741846665,-202.0,0.00041096,30]
[419007122,1774741846675,-89499.46,0.000411,7]
[419007123,1774741846687,-500.0,0.00041315,10]
[419007124,1774741846698,-1990.0,0.00041369,120]
[419007125,1774741846709,-2000.0,0.000414,2]
[419007126,1774741846720,-2807.0,0.00041402,11]
[419007127,1774741846730,-2807.0,0.00041402,11]
[419007128,1774741846742,-1045.0,0.00041459,2]
[419007129,1774741846752,-513.0,0.000415,26]
[419007130,1774741846762,-152.0,0.00041624,4]
[419007131,1774741846772,-1990.0,0.00041643,120]
[419007132,1774741846783,-500.0,0.00041702,120]
[419007133,1774741846795,-11475.81249001,0.00041817,2]
[419007134,1774741846805,-1000.0,0.00041834,2]
[419007135,1774741846815,-122001.59175635,0.00041888,120]
[419007136,1774741846825,-1990.0,0.00041917,120]
[419007137,1774741846836,-3000.0,0.00042,14]
[419007138,1774741846846,-164.3438,0.00042,2]
[419007139,1774741846856,-307.61637486,0.00042174,2]
[419007140,1774741846866,-858.96862748,0.00042174,2]
[419007141,1774741846876,-308.89594717,0.00042174,2]
[419007142,1774741846885,-460.90074888,0.00042174,2]
[419007143,1774741846895,-300.0,0.00042174,2]
[419007144,1774741846904,-448.97026569,0.00042174,2]
[419007145,1774741846914,-302.93336394,0.00042174,2]
[419007146,1774741846924,-521.34304827,0.00042174,2]
[419007147,1774741846934,-307.85359734,0.00042174,2]
[419007149,1774741846943,-300.0,0.00042174,2]
[419007151,1774741846952,-1087.70088883,0.00042174,2]
[419007153,1774741846962,-301.25449542,0.00042174,2]
[419007154,1774741846971,-600.60949504,0.00042174,2]
[419007155,1774741846980,-300.0,0.00042174,2]
[419007156,1774741846990,-556.35940035,0.00042174,2]
[419007157,1774741847000,-1060.13977046,0.00042174,2]
[419007158,1774741847010,-559.56132581,0.00042174,2]
[419007159,1774741847020,-1990.0,0.00042191,120]
[419007160,1774741847030,-5800.0,0.0004221,14]
[419007161,1774741847040,-1139.84897653,0.00042211,2]
[419007162,1774741847050,-307.61637485,0.00042211,2]
[419007163,1774741847060,-858.96862748,0.00042211,2]
[419007164,1774741847069,-308.89594717,0.00042211,2]
[419007165,1774741847079,-460.90074888,0.00042211,2]
[419007166,1774741847089,-300.0,0.00042211,2]
[419007167,1774741847098,-448.97026569,0.00042211,2]
[419007168,1774741847108,-302.93336394,0.00042211,2]
[419007169,1774741847119,-521.34304827,0.00042211,2]
[419007170,1774741847128,-307.85359734,0.00042211,2]
[419007171,1774741847138,-300.0,0.00042211,2]
[419007172,1774741847148,-1087.70088883,0.00042211,2]
[419007173,1774741847158,-301.25449542,0.00042211,2]
[419007174,1774741847168,-600.60949504,0.00042211,2]
[419007175,1774741847178,-307.87678959,0.00042211,2]
[419007176,1774741847188,-556.35940035,0.00042211,2]
[419007177,1774741847197,-1060.13977046,0.00042211,2]
[419007178,1774741847207,-559.56132581,0.00042211,2]
[419007179,1774741847216,-1139.84897653,0.00042211,2]
[419007180,1774741847226,-307.61637485,0.00042211,2]
[419007181,1774741847235,-858.96862748,0.00042211,2]
[419007182,1774741847244,-308.89594717,0.00042211,2]
[419007183,1774741847254,-460.90074888,0.00042211,2]
[419007184,1774741847265,-300.0,0.00042211,2]
[419007185,1774741847275,-448.97026569,0.00042211,2]
[419007186,1774741847285,-302.93336394,0.00042211,2]
[419007187,1774741847295,-521.34304827,0.00042211,2]
[419007188,1774741847305,-307.85359734,0.00042211,2]
[419007189,1774741847316,-300.0,0.00042211,2]
[419007190,1774741847326,-1087.70088883,0.00042211,2]
[419007191,1774741847336,-301.25449542,0.00042211,2]
[419007192,1774741847346,-600.60949504,0.00042211,2]
[419007193,1774741847355,-556.35940035,0.00042211,2]
[419007194,1774741847364,-1060.13977046,0.00042211,2]
[419007195,1774741847374,-559.56132581,0.00042211,2]
[419007196,1774741847383,-1139.84897653,0.00042211,2]
[419007197,1774741847394,-307.61637485,0.00042211,2]
[419007198,1774741847403,-858.96862748,0.00042211,2]
[419007199,1774741847412,-308.89594717,0.00042211,2]
[419007200,1774741847421,-460.90074888,0.00042211,2]
[419007201,1774741847431,-300.0,0.00042211,2]
[419007202,1774741847440,-448.97026569,0.00042211,2]
[419007203,1774741847450,-302.93336394,0.00042211,2]
[419007204,1774741847459,-521.34304827,0.00042211,2]
[419007205,1774741847468,-307.85359734,0.00042211,2]
[419007206,1774741847477,-300.0,0.00042211,2]
[419007207,1774741847486,-1087.70088883,0.00042211,2]
[419007208,1774741847495,-301.25449542,0.00042211,2]
[419007209,1774741847505,-600.60949504,0.00042211,2]
[419007210,1774741847516,-556.35940035,0.00042211,2]
[419007211,1774741847526,-1060.13977046,0.00042211,2]
[419007212,1774741847535,-559.56132581,0.00042211,2]
[419007213,1774741847545,-1139.84897653,0.00042211,2]
[419007214,1774741847554,-307.61637485,0.00042211,2]
[419007215,1774741847564,-858.96862748,0.00042211,2]
[419007216,1774741847574,-308.89594717,0.00042211,2]
[419007217,1774741847583,-460.90074888,0.00042211,2]
[419007218,1774741847593,-300.0,0.00042211,2]
[419007219,1774741847603,-448.97026569,0.00042211,2]
[419007220,1774741847611,-302.93336394,0.00042211,2]
[419007221,1774741847623,-521.34304827,0.00042211,2]
[419007222,1774741847634,-307.85359734,0.00042211,2]
[419007223,1774741847644,-300.0,0.00042211,2]
[419007224,1774741847653,-1087.70088883,0.00042211,2]
[419007225,1774741847662,-301.25449542,0.00042211,2]
[419007226,1774741847672,-600.60949504,0.00042211,2]
[419007227,1774741847682,-556.35940035,0.00042211,2]
[419007228,1774741847692,-1060.13977046,0.00042211,2]
[419007229,1774741847703,-559.56132581,0.00042211,2]
[419007230,1774741847714,-1139.84897653,0.00042211,2]
[419007231,1774741847726,-307.61637485,0.00042211,2]
[419007232,1774741847735,-858.96862748,0.00042211,2]
[419007233,1774741847747,-308.89594717,0.00042211,2]
[419007234,1774741847757,-460.90074888,0.00042211,2]
[419007235,1774741847767,-300.0,0.00042211,2]
[419007236,1774741847779,-448.97026569,0.00042211,2]
[419007237,1774741847789,-302.93336394,0.00042211,2]
[419007238,1774741847799,-521.34304827,0.00042211,2]
[419007239,1774741847809,-307.85359734,0.00042211,2]
[419007240,1774741847818,-300.0,0.00042211,2]
[419007241,1774741847828,-1087.70088883,0.00042211,2]
[419007242,1774741847839,-301.25449542,0.00042211,2]
[419007243,1774741847849,-600.60949504,0.00042211,2]
[419007244,1774741847859,-556.35940035,0.00042211,2]
[419007245,1774741847869,-1060.13977046,0.00042211,2]
[419007246,1774741847878,-778.36501352,0.00042211,2]
[419007247,1774741847887,-129985.0,0.000423,60]
[419007248,1774741847897,-1990.0,0.00042465,120]
[419007249,1774741847907,-200.0,0.00042466,2]
[419007250,1774741847917,-200.0,0.00042466,2]
[419007251,1774741847926,-177.0,0.00042466,2]
[419007252,1774741847937,-200.0,0.00042466,2]
[419007253,1774741847946,-252.0,0.00042466,2]
[419007254,1774741847956,-1588.30498183,0.00042518,15]
[419007255,1774741847967,-1308.7,0.00042546,120]
[419007256,1774741847976,-817.93,0.00042546,30]
[419007257,1774741847985,-1301.22,0.00042546,120]
[419007258,1774741847996,-813.26,0.00042546,30]
[419007259,1774741848005,-24475.95,0.00042546,120]
[419007260,1774741848015,-15297.47,0.00042546,30]
[419007261,1774741848027,-791.81,0.00042546,120]
[419007262,1774741848037,-523.22,0.00042546,30]
[419007263,1774741848048,-11475.81248999,0.00042634,2]
[419007264,1774741848059,-169.0,0.00042716,120]
[419007265,1774741848068,-1990.0,0.00042739,120]
[419007266,1774741848078,-2261.51772527,0.0004274,14]
[419007267,1774741848087,-1000.0,0.0004274,30]
[419007268,1774741848098,-1000.0,0.0004274,30]
[419007269,1774741848108,-1000.0,0.0004274,30]
[419007270,1774741848118,-766.149,0.0004274,30]
[419007271,1774741848128,-1000.0,0.0004274,120]
[419007272,1774741848139,-1000.0,0.00042834,2]
[419007273,1774741848148,-149137.68982506,0.0004288,60]
[419007274,1774741848158,-2807.0,0.00042918,16]
[419007275,1774741848167,-1570.0,0.00042918,16]
[419007276,1774741848177,-815.05,0.0004297,30]
[419007277,1774741848188,-1990.0,0.00043013,120]
[419007278,1774741848197,-350.0,0.00043017,12]
[419007279,1774741848207,-355.53423949,0.00043103,10]
[419007280,1774741848217,-500.0,0.00043144,120]
[419007281,1774741848227,-1990.0,0.00043287,120]
[419007282,1774741848238,-11475.81248999,0.0004345,2]
[419007283,1774741848248,-172.0,0.00043487,120]
[419007284,1774741848258,-1990.0,0.00043561,120]
[419007285,1774741848267,-89499.46,0.000436,7]
[419007286,1774741848277,-129985.0,0.0004365,60]
[419007287,1774741848286,-186.99,0.00043699,7]
[419007288,1774741848295,-151.0,0.00043834,2]
[419007289,1774741848305,-648.1349563,0.00043835,2]
[419007290,1774741848315,-500.0,0.00043835,30]
[419007291,1774741848325,-270.78845739,0.00043835,30]
[419007292,1774741848335,-500.0,0.00043835,7]
[419007293,1774741848344,-500.0,0.00043835,7]
[419007294,1774741848354,-506.73713909,0.00043835,7]
[419007295,1774741848363,-1000.0,0.00043835,2]
[419007296,1774741848457,-1000.0,0.00043835,2]
[419007297,1774741848467,-1000.0,0.00043835,2]
[419007298,1774741848478,-1000.0,0.00043835,2]
[419007299,1774741848488,-1131.61932121,0.00043835,2]
[419007300,1774741848498,-391.41951449,0.00043835,2]
[419007301,1774741848508,-1990.0,0.00043835,120]
[419007302,1774741848518,-1959.26279,0.00043835,120]
[419007303,1774741848529,-24545.18682131,0.000439,14]
[419007304,1774741848539,-150.0,0.00044,57]
[419007305,1774741848548,-3000.0,0.00044,20]
[419007306,1774741848559,-166.6,0.00044,30]
[419007307,1774741848569,-500.0,0.00044024,120]
[419007308,1774741848579,-1959.26279,0.00044035,120]
[419007309,1774741848590,-500.0,0.00044099,10]
[419007310,1774741848600,-1990.0,0.00044109,120]
[419007311,1774741848610,-151.0,0.00044155,30]
[419007312,1774741848620,-272.06584703,0.00044155,30]
[419007313,1774741848630,-163.58,0.00044158,120]
[419007314,1774741848640,-162.65,0.00044158,120]
[419007315,1774741848650,-3059.49,0.00044158,120]
[419007316,1774741848660,-150.0,0.00044158,120]
[419007317,1774741848670,-1959.2628,0.00044235,120]
[419007318,1774741848679,-513.0,0.0004425,28]
[419007319,1774741848689,-11475.81248999,0.00044267,2]
[419007320,1774741848698,-1990.0,0.00044383,120]
[419007321,1774741848709,-1600.0,0.00044406,120]
[419007322,1774741848719,-1959.26279,0.00044435,120]
[419007323,1774741848729,-1045.0,0.00044459,2]
[419007324,1774741848739,-2729.49949041,0.00044459,2]
[419007325,1774741848749,-1338.89781528,0.00044567,31]
[419007326,1774741848758,-500.0,0.00044586,120]
[419007327,1774741848768,-300.0,0.00044604,120]
[419007328,1774741848778,-300.0,0.00044604,120]
[419007329,1774741848788,-176.33161264,0.00044604,120]
[419007330,1774741848798,-2807.0,0.00044604,16]
[419007331,1774741848809,-1959.26279,0.00044635,120]
[419007332,1774741848819,-151.0,0.00044654,120]
[419007333,1774741848828,-1990.0,0.00044657,120]
[419007334,1774741848838,-2200.0,0.0004468,120]
[419007335,1774741848848,-232.9232502,0.000447,120]
[419007336,1774741848858,-300.0,0.00044704,120]
[419007337,1774741848868,-300.0,0.00044704,120]
[419007338,1774741848878,-1000.0,0.00044788,21]
[419007339,1774741848888,-300.0,0.00044804,120]
[419007340,1774741848897,-300.0,0.00044804,120]
[419007341,1774741848907,-151.0,0.00044834,2]
[419007342,1774741848917,-1959.2628,0.00044835,120]
[419007343,1774741848927,-400.54933588,0.00044904,120]
[419007344,1774741848936,-2807.0,0.00044924,16]
[419007345,1774741848947,-162.0,0.00044924,16]
[419007346,1774741848957,-1990.0,0.00044931,120]
[419007347,1774741848966,-500.0,0.00044944,30]
[419007348,1774741848976,-1600.0,0.00044954,120]
[419007349,1774741848986,-500.0,0.00045,2]
[419007350,1774741848996,-89499.46,0.00045,7]
[419007351,1774741849006,-424.5,0.00045,2]
[419007352,1774741849018,-250.72321771,0.00045,2]
[419007353,1774741849028,-129985.0,0.00045,60]
[419007354,1774741849038,-500.0,0.00045,120]
[419007355,1774741849048,-500.0,0.00045,120]
[419007356,1774741849058,-500.0,0.00045,120]
[419007357,1774741849068,-500.0,0.00045,120]
[419007358,1774741849078,-500.0,0.00045,120]
[419007359,1774741849088,-500.0,0.00045,120]
[419007360,1774741849098,-500.0,0.00045,120]
[419007361,1774741849107,-500.0,0.00045,120]
[419007362,1774741849117,-500.0,0.00045,120]
[419007363,1774741849127,-500.0,0.00045,120]
[419007364,1774741849138,-500.0,0.00045,120]
[419007365,1774741849148,-500.0,0.00045,120]
[419007366,1774741849157,-500.0,0.00045,120]
[419007367,1774741849167,-500.0,0.00045,120]
[419007368,1774741849176,-500.0,0.00045,120]
[419007369,1774741849185,-500.0,0.00045,120]
[419007370,1774741849195,-500.0,0.00045,120]
[419007371,1774741849204,-500.0,0.00045,120]
[419007372,1774741849214,-500.0,0.00045,120]
[419007373,1774741849224,-500.0,0.00045,120]
[419007374,1774741849233,-500.0,0.00045,120]
[419007375,1774741849243,-516.45,0.00045,120]
[419007376,1774741849253,-506.2,0.00045,120]
[419007377,1774741849263,-500.0,0.00045,120]
[419007378,1774741849272,-500.0,0.00045,120]
[419007379,1774741849282,-500.0,0.00045,120]
[419007380,1774741849291,-500.0,0.00045,120]
[419007381,1774741849301,-500.0,0.00045,120]
[419007382,1774741849310,-500.0,0.00045,120]
[419007383,1774741849320,-582.37,0.00045,30]
[419007384,1774741849330,-6617.54,0.00045,30]
[419007385,1774741849340,-173.419,0.00045056,72]
[419007386,1774741849350,-11475.81248999,0.00045083,2]
[419007387,1774741849359,-2000.0,0.000451,2]
[419007388,1774741849369,-815.05,0.00045133,30]
[419007389,1774741849379,-200.0,0.0004514,120]
[419007390,1774741849388,-1990.0,0.00045205,120]
[419007391,1774741849398,-202.0,0.00045205,30]
[419007392,1774741849408,-500.0,0.00045218,30]
[419007393,1774741849417,-1000.0,0.00045226,14]
[419007394,1774741849426,-2200.0,0.00045228,120]
[419007395,1774741849435,-2807.0,0.00045244,16]
[419007396,1774741849445,-1000.0,0.00045293,14]
[419007397,1774741849455,-350.0,0.00045345,14]
[419007398,1774741849464,-1000.0,0.00045389,14]
[419007399,1774741849473,-1000.0,0.00045406,14]
[419007400,1774741849483,-1000.0,0.00045426,14]
[419007401,1774741849493,-1000.0,0.00045437,14]
[419007402,1774741849503,-1000.0,0.00045437,14]
[419007403,1774741849513,-1000.0,0.00045442,14]
[419007404,1774741849524,-1000.0,0.00045457,14]
[419007405,1774741849535,-1990.0,0.00045479,120]
[419007406,1774741849544,-1000.0,0.00045483,14]
[419007407,1774741849555,-500.0,0.00045492,30]
[419007408,1774741849564,-5680.75,0.000455,120]
[419007409,1774741849575,-1600.0,0.00045502,120]
[419007410,1774741849583,-1000.0,0.00045506,14]
[419007411,1774741849592,-1000.0,0.00045517,14]